bitfinex-derivatives/quotes_BTCF0:USTF0_20250710
["timestamp","ask_amount","ask_price","bid_price","bid_amount"]
[1752185179794,0.0011,116400.0,116390.0,1.73024]
[1752185180000,0.0011,116400.0,116390.0,1.72824]
[1752185180298,0.0011,116400.0,116390.0,1.72924]
[1752185180798,0.36108773,116400.0,116390.0,1.36676]
[1752185181000,0.42798774,116400.0,116390.0,1.36676]
[1752185181390,0.42798774,116400.0,116390.0,0.38167]
[1752185181591,0.42798774,116400.0,116390.0,1.22987]
[1752185181800,0.80510547,116400.0,116390.0,1.22987]
[1752185181995,1.22693747,116400.0,116390.0,0.02087]
[1752185182297,1.22693747,116400.0,116380.0,0.02148]
[1752185182298,0.04762,116390.0,116380.0,0.02148]
[1752185182500,0.90421773,116390.0,116360.0,0.01941588]
[1752185182708,0.35963773,116370.0,116360.0,0.01941588]
[1752185182905,0.36007773,116370.0,116360.0,0.00171873]
[1752185183096,0.66384973,116370.0,116360.0,0.00171873]
[1752185183793,0.66784973,116370.0,116360.0,0.00271873]
[1752185184596,1.02864973,116370.0,116360.0,0.00271873]
[1752185184796,0.85677773,116370.0,116360.0,0.00271873]
[1752185185400,0.85777773,116370.0,116360.0,0.00271873]
[1752185185802,0.54576,116370.0,116360.0,0.00271873]
[1752185186003,0.85277773,116370.0,116360.0,0.00271873]
[1752185186304,0.49597773,116370.0,116360.0,0.00271873]
[1752185186495,0.85677773,116370.0,116360.0,0.00271873]
[1752185187101,0.85777773,116370.0,116360.0,0.00271873]
[1752185187697,0.49697773,116370.0,116360.0,0.00271873]
[1752185188097,0.49697773,116370.0,116360.0,0.36351873]
[1752185188292,0.49697773,116370.0,116360.0,0.00315873]
[1752185188490,0.49597773,116370.0,116360.0,0.00271873]
[1752185188801,0.49697773,116370.0,116360.0,0.00271873]
[1752185189303,0.42937773,116370.0,116360.0,0.36351873]
[1752185189599,0.42937773,116370.0,116360.0,0.42921873]
[1752185189800,0.11436,116370.0,116360.0,0.43234873]
[1752185190101,0.001,116370.0,116360.0,1.27694873]
[1752185190296,0.001,116370.0,116360.0,1.34324873]
[1752185190603,0.04862,116370.0,116360.0,1.34524873]
[1752185190904,0.36063773,116370.0,116360.0,0.50164873]
[1752185191093,0.42791774,116370.0,116360.0,1.34508873]
[1752185191294,0.11590001,116370.0,116360.0,1.34508873]
[1752185191602,0.42743773,116370.0,116360.0,1.34548873]
[1752185191803,0.42787773,116370.0,116360.0,1.34548873]
[1752185191998,0.11586,116370.0,116360.0,1.34848873]
[1752185192201,0.11586,116370.0,116360.0,1.35148873]
[1752185192202,0.04862,116370.0,116360.0,1.35148873]
[1752185192405,0.42643773,116390.0,116370.0,0.00369]
[1752185192715,0.21486,116390.0,116380.0,0.3598]
[1752185192902,0.52473773,116390.0,116380.0,0.36024]
[1752185193091,0.52521774,116390.0,116380.0,0.36024]
[1752185193605,0.52521774,116390.0,116380.0,0.00044]
[1752185193793,0.04762,116380.0,116370.0,0.49603]
[1752185193997,0.35963773,116380.0,116370.0,0.49647]
[1752185194200,0.00056001,116380.0,116370.0,0.51470366]
[1752185194398,0.35963773,116390.0,116370.0,0.51470366]
[1752185194599,0.46023774,116390.0,116380.0,0.4293]
[1752185194798,0.46023774,116390.0,116380.0,0.42978]
[1752185195299,0.46123774,116390.0,116380.0,0.43378]
[1752185195506,0.56722,116380.0,116370.0,0.44876366]
[1752185195808,0.61556,116380.0,116370.0,0.44920366]
[1752185196209,0.61556,116380.0,116370.0,0.44720366]
[1752185196906,0.64739,116380.0,116370.0,0.45821366]
[1752185197113,0.95940773,116380.0,116370.0,0.86980366]
[1752185197297,1.02180773,116380.0,116370.0,0.86980366]
[1752185197499,1.02180773,116380.0,116370.0,0.86888366]
[1752185197808,1.02180773,116380.0,116370.0,0.02968366]
[1752185198005,1.02180773,116380.0,116370.0,0.02924366]
[1752185198308,1.02180773,116380.0,116370.0,0.02423366]
[1752185198502,1.35177773,116380.0,116370.0,0.02623366]
[1752185199408,0.99097773,116380.0,116370.0,0.02623366]
[1752185199612,1.35177773,116380.0,116370.0,0.02623366]
[1752185199801,1.03976,116380.0,116370.0,0.02623366]
[1752185200002,0.99097773,116380.0,116370.0,0.02623366]
[1752185200212,0.99107773,116380.0,116370.0,0.02623366]
[1752185200403,0.67906,116380.0,116370.0,0.02623366]
[1752185200610,0.61666,116380.0,116370.0,0.02623366]
[1752185201008,0.67906,116380.0,116370.0,0.02623366]
[1752185201214,1.03986,116380.0,116370.0,0.02623366]
[1752185201602,1.35187773,116380.0,116370.0,0.02623366]
[1752185202515,1.35187773,116380.0,116370.0,0.008]
[1752185202714,1.35187773,116380.0,116370.0,0.06815]
[1752185204409,0.64749,116380.0,116370.0,0.07316]
[1752185204605,1.32030773,116380.0,116370.0,0.06815]
[1752185204805,1.38800773,116380.0,116370.0,0.06815]
[1752185205708,1.38800773,116380.0,116370.0,0.07316]
[1752185207010,1.32030773,116380.0,116370.0,0.07316]
[1752185207314,0.95950773,116380.0,116370.0,0.20256]
[1752185208014,1.08550773,116380.0,116370.0,0.20256]
[1752185208412,0.64749,116380.0,116370.0,0.56649]
[1752185208718,0.61666,116380.0,116370.0,1.5713319]
[1752185209010,0.56904,116380.0,116370.0,1.70649773]
[1752185209210,0.56904,116380.0,116370.0,1.5663219]
[1752185209617,0.56904,116380.0,116370.0,1.39448]
[1752185209815,0.56904,116380.0,116370.0,1.7381779]
[1752185210311,0.56904,116380.0,116370.0,2.05019563]
[1752185210717,0.56904,116380.0,116370.0,2.11750202]
[1752185211617,0.56904,116380.0,116370.0,1.94566022]
[1752185212016,0.56904,116380.0,116370.0,2.11750242]
[1752185212520,0.56904,116380.0,116370.0,1.63364249]
[1752185212718,0.56904,116380.0,116370.0,1.94566022]
[1752185212918,0.56904,116380.0,116370.0,2.11750242]
[1752185213420,0.65138,116380.0,116370.0,1.46467649]
[1752185213607,0.65138,116380.0,116370.0,0.63066649]
[1752185213807,0.65138,116380.0,116370.0,0.56336]
[1752185214013,1.35899773,116380.0,116370.0,0.06815]
[1752185214320,1.42219773,116380.0,116370.0,0.06815]
[1752185214508,1.06139773,116380.0,116370.0,0.06815]
[1752185214710,1.42219773,116380.0,116370.0,0.06815]
[1752185220520,1.42219773,116380.0,116370.0,0.07316]
[1752185220726,1.06139773,116380.0,116370.0,0.07316]
[1752185220923,1.42219773,116380.0,116370.0,0.07316]
[1752185221122,1.06139773,116380.0,116370.0,0.07316]
[1752185221427,1.42219773,116380.0,116370.0,0.07316]
[1752185222823,0.78238,116380.0,116370.0,0.43396]
[1752185223024,0.78238,116380.0,116370.0,0.13546]
[1752185223329,1.09439773,116380.0,116370.0,0.07316]
[1752185223517,1.09439773,116380.0,116370.0,0.43396]
[1752185223721,0.78238,116380.0,116370.0,0.43396]
[1752185224123,0.56904,116380.0,116370.0,1.74564373]
[1752185224324,0.56904,116380.0,116370.0,2.04498593]
[1752185224724,0.65138,116380.0,116370.0,1.38554]
[1752185225124,0.65138,116380.0,116370.0,1.5573822]
[1752185225330,0.61838,116380.0,116370.0,2.04438593]
[1752185225525,0.44003169,116380.0,116370.0,2.36453678]
[1752185225824,0.43931169,116380.0,116370.0,2.36453678]
[1752185226420,0.43931169,116380.0,116370.0,2.86453678]
[1752185226931,0.43931169,116380.0,116370.0,2.55251905]
[1752185227232,0.43931169,116380.0,116370.0,2.86453678]
[1752185228133,0.80066942,116380.0,116370.0,1.12973085]
[1752185228329,0.80138942,116380.0,116370.0,0.99910085]
[1752185228534,0.80138942,116380.0,116370.0,1.75091]
[1752185228736,0.93158942,116380.0,116370.0,1.25091]
[1752185229733,0.48937169,116380.0,116370.0,1.31926978]
[1752185229937,0.80138942,116380.0,116370.0,0.42495]
[1752185230130,0.80138942,116380.0,116370.0,1.24619]
[1752185230334,0.93158942,116380.0,116370.0,1.24519]
[1752185230534,0.93158942,116380.0,116370.0,1.24919]
[1752185230730,0.55517169,116380.0,116370.0,1.24919]
[1752185231137,0.55517169,116380.0,116370.0,1.24859]
[1752185231341,0.62287169,116380.0,116370.0,1.24859]
[1752185232137,0.62287169,116380.0,116370.0,1.79464933]
[1752185232138,0.44003169,116380.0,116370.0,1.79464933]
[1752185232440,0.43931169,116380.0,116370.0,2.25950533]
[1752185232736,0.43931169,116380.0,116370.0,2.81965533]
[1752185233434,0.0001,116400.0,116390.0,0.1718121]
[1752185233638,0.0001,116400.0,116390.0,2.02466983]
[1752185233840,0.0001,116400.0,116390.0,2.44650183]
[1752185234235,0.0001,116400.0,116390.0,2.19650183]
[1752185234644,0.0011,116400.0,116390.0,2.20050183]
[1752185234832,0.0011,116400.0,116390.0,1.8884841]
[1752185235037,0.0011,116400.0,116390.0,2.20050183]
[1752185235447,0.0011,116400.0,116390.0,2.52868973]
[1752185235638,0.0011,116400.0,116390.0,2.70250193]
[1752185235838,0.0011,116400.0,116390.0,2.53068973]
[1752185236544,0.0011,116400.0,116390.0,2.54108973]
[1752185237244,0.0011,116400.0,116390.0,2.60981973]
[1752185237438,0.0011,116400.0,116390.0,2.297802]
[1752185237646,0.0011,116400.0,116390.0,2.24901973]
[1752185237842,0.0011,116400.0,116390.0,2.60981973]
[1752185238237,0.0011,116400.0,116390.0,2.78163183]
[1752185238440,0.0011,116400.0,116390.0,3.11754617]
[1752185239651,0.0011,116400.0,116390.0,2.80552844]
[1752185239850,0.0011,116400.0,116390.0,3.11754617]
[1752185240751,0.0011,116400.0,116390.0,2.80552844]
[1752185240953,0.0011,116400.0,116390.0,3.11754617]
[1752185241148,0.0001,116400.0,116390.0,3.11354617]
[1752185241347,0.0011,116400.0,116390.0,3.11954617]
[1752185241547,0.0011,116400.0,116390.0,2.80752844]
[1752185241746,0.002,116410.0,116400.0,0.172799]
[1752185241949,0.002,116410.0,116400.0,0.85601673]
[1752185242150,0.002,116410.0,116400.0,1.02783273]
[1752185243252,0.17186,116430.0,116410.0,0.04795]
[1752185243450,0.05095,116450.0,116420.0,1.84801773]
[1752185243749,0.17186,116430.0,116420.0,1.49761773]
[1752185244048,0.04895,116440.0,116420.0,1.8040534]
[1752185244254,0.17186,116440.0,116430.0,0.3608]
[1752185244551,0.17186,116440.0,116430.0,0.83957243]
[1752185244751,0.05095,116450.0,116430.0,0.88251053]
[1752185244943,0.17386,116450.0,116440.0,1.17392]
[1752185245455,0.03635001,116450.0,116440.0,1.53388773]
[1752185245650,0.03635001,116450.0,116440.0,1.60377877]
[1752185245855,0.03635001,116450.0,116440.0,1.28876104]
[1752185246554,0.1363,116450.0,116440.0,1.28976104]
[1752185247653,0.1363,116450.0,116440.0,1.78976104]
[1752185247853,0.18525,116450.0,116440.0,1.78976104]
[1752185248151,0.61800152,116450.0,116440.0,1.43084104]
[1752185248357,0.78986152,116450.0,116440.0,1.74369104]
[1752185248748,0.78986152,116450.0,116440.0,0.93169104]
[1752185248944,0.47784379,116450.0,116440.0,1.6726]
[1752185249356,0.78986152,116450.0,116440.0,1.1726]
[1752185249852,0.78986152,116450.0,116440.0,0.8118]
[1752185250155,0.47784379,116450.0,116440.0,0.8118]
[1752185250354,0.47856379,116450.0,116440.0,0.8118]
[1752185250658,0.79058152,116450.0,116440.0,1.1726]
[1752185250953,0.47856379,116450.0,116440.0,1.1726]
[1752185252057,0.79058152,116450.0,116440.0,1.1726]
[1752185252256,0.47856379,116450.0,116440.0,1.1726]
[1752185252452,0.79058152,116450.0,116440.0,1.1726]
[1752185252655,0.79058152,116450.0,116440.0,0.8118]
[1752185252961,0.79058152,116450.0,116440.0,1.1726]
[1752185253257,0.47856379,116450.0,116440.0,1.22055]
[1752185254263,0.47856379,116450.0,116440.0,1.1726]
[1752185254462,0.79058152,116450.0,116440.0,1.1726]
[1752185254759,0.47856379,116450.0,116440.0,1.1726]
[1752185255261,0.47856379,116450.0,116440.0,1.2413]
[1752185255463,0.47856379,116450.0,116440.0,1.28925]
[1752185255663,0.00672,116450.0,116440.0,1.77300773]
[1752185255858,0.006,116450.0,116440.0,1.90050773]
[1752185256164,0.006,116450.0,116440.0,1.58849]
[1752185256369,0.006,116450.0,116440.0,1.90050773]
[1752185257053,0.127,116460.0,116450.0,0.1717384]
[1752185257258,0.127,116460.0,116450.0,0.88650613]
[1752185257555,0.127,116460.0,116450.0,1.01400613]
[1752185257762,0.127,116460.0,116450.0,0.7019884]
[1752185258065,0.127,116460.0,116450.0,1.01400613]
[1752185258363,0.003,116460.0,116450.0,0.94960613]
[1752185258664,0.003,116460.0,116450.0,1.01400613]
[1752185258861,0.1258,116470.0,116450.0,1.244923]
[1752185259063,0.41839379,116470.0,116460.0,1.20763]
[1752185259260,0.46734379,116470.0,116460.0,1.20763]
[1752185260154,0.46734379,116470.0,116460.0,0.80536]
[1752185260355,0.77936152,116470.0,116460.0,0.80536]
[1752185260555,0.46806379,116470.0,116460.0,1.20811]
[1752185260755,0.46806379,116470.0,116460.0,1.004678]
[1752185261264,0.78008152,116470.0,116460.0,1.004678]
[1752185261564,0.47006379,116470.0,116460.0,1.406628]
[1752185261864,0.47206379,116470.0,116460.0,1.406628]
[1752185262064,0.47206379,116470.0,116460.0,1.364678]
[1752185262265,0.46906379,116470.0,116460.0,1.364678]
[1752185262564,0.46906379,116470.0,116460.0,1.406628]
[1752185262565,0.47006379,116470.0,116460.0,1.406628]
[1752185264963,0.47006379,116470.0,116460.0,1.405108]
[1752185266467,0.29531379,116470.0,116460.0,1.405108]
[1752185266667,0.42139379,116470.0,116460.0,1.405108]
[1752185266867,0.50109379,116470.0,116460.0,1.405108]
[1752185267562,0.50181379,116470.0,116460.0,1.405108]
[1752185268068,0.00272,116470.0,116460.0,1.88885063]
[1752185268264,0.002,116470.0,116460.0,2.01535063]
[1752185268866,0.001,116470.0,116460.0,2.01535063]
[1752185269172,0.002,116470.0,116460.0,2.01535063]
[1752185269365,0.5,116480.0,116470.0,0.2033301]
[1752185269565,0.79335379,116480.0,116470.0,0.45682]
[1752185269770,0.93605379,116480.0,116470.0,0.39242]
[1752185269972,0.93605379,116480.0,116470.0,0.5641301]
[1752185270270,0.93605379,116480.0,116470.0,0.7634481]
[1752185271271,0.93605379,116480.0,116470.0,1.07546583]
[1752185271570,0.93605379,116480.0,116470.0,0.7634481]
[1752185271767,0.93605379,116480.0,116470.0,0.78103279]
[1752185271968,0.93605379,116480.0,116470.0,0.60932269]
[1752185272267,1.24907152,116480.0,116470.0,0.560118]
[1752185272471,1.24907152,116480.0,116470.0,1.358878]
[1752185272672,1.31287152,116480.0,116470.0,0.998078]
[1752185273666,1.31287152,116480.0,116470.0,0.199318]
[1752185273971,1.31287152,116480.0,116470.0,0.997358]
[1752185274171,1.31287152,116480.0,116470.0,1.358158]
[1752185274372,1.31287152,116480.0,116470.0,0.560118]
[1752185274564,1.31287152,116480.0,116470.0,1.357838]
[1752185274873,1.00085379,116480.0,116470.0,1.357838]
[1752185275169,1.00085379,116480.0,116470.0,0.560118]
[1752185275371,1.00085379,116480.0,116470.0,1.357438]
[1752185275561,1.00085379,116480.0,116470.0,1.37540438]
[1752185276975,0.90630379,116480.0,116470.0,1.68742211]
[1752185277273,0.90630379,116480.0,116470.0,1.85913231]
[1752185277472,0.90630379,116480.0,116470.0,2.42203231]
[1752185278266,0.93691379,116480.0,116470.0,2.42203231]
[1752185278571,0.12249379,116480.0,116470.0,2.42203231]
[1752185278772,0.16899379,116480.0,116470.0,2.17631458]
[1752185278972,0.26070379,116480.0,116470.0,2.17631458]
[1752185279173,0.32330379,116480.0,116470.0,2.17631458]
[1752185279675,0.32330379,116480.0,116470.0,2.17831458]
[1752185280066,0.32330379,116480.0,116470.0,2.49033231]
[1752185280374,0.32330379,116480.0,116470.0,2.49333231]
[1752185280566,0.32230379,116480.0,116470.0,2.49433231]
[1752185280768,0.32230379,116480.0,116470.0,2.32262211]
[1752185280968,0.32230379,116480.0,116470.0,1.88140438]
[1752185281268,0.49416379,116480.0,116470.0,1.88140438]
[1752185281464,0.49488379,116480.0,116470.0,1.88140438]
[1752185281972,0.49488379,116480.0,116470.0,1.88340438]
[1752185282275,0.49488379,116480.0,116470.0,1.88068438]
[1752185282470,0.49488379,116480.0,116470.0,1.87996438]
[1752185283176,0.49488379,116480.0,116470.0,1.37996438]
[1752185284471,0.49488379,116480.0,116470.0,1.86369211]
[1752185284472,0.00072,116480.0,116470.0,1.86369211]
[1752185284679,0.502,116490.0,116470.0,2.01225691]
[1752185284874,0.502,116490.0,116480.0,0.84451293]
[1752185284875,0.54926,116490.0,116480.0,0.84451293]
[1752185285070,0.61246,116490.0,116480.0,0.84451293]
[1752185285379,0.61246,116490.0,116480.0,1.04383093]
[1752185285580,0.61246,116490.0,116480.0,1.54383093]
[1752185286270,0.61246,116490.0,116480.0,1.2318132]
[1752185286475,0.64379,116490.0,116480.0,1.54383093]
[1752185287179,0.64379,116490.0,116480.0,1.37613573]
[1752185287376,1.07654152,116490.0,116480.0,1.064118]
[1752185287681,1.24840152,116490.0,116480.0,1.496598]
[1752185287876,1.24840152,116490.0,116480.0,0.705318]
[1752185288077,1.24840152,116490.0,116480.0,1.496278]
[1752185288278,1.31620152,116490.0,116480.0,1.357078]
[1752185289279,0.81620152,116490.0,116480.0,0.564118]
[1752185289476,0.81620152,116490.0,116480.0,0.562118]
[1752185289675,0.81620152,116490.0,116480.0,1.353358]
[1752185290386,0.81620152,116490.0,116480.0,0.992518]
[1752185290889,0.81620152,116490.0,116480.0,0.991038]
[1752185291090,0.50418379,116490.0,116480.0,0.202318]
[1752185291293,0.81620152,116490.0,116480.0,0.563118]
[1752185291493,0.81620152,116490.0,116480.0,0.202318]
[1752185291685,1.17700152,116490.0,116480.0,0.991558]
[1752185292393,0.80178379,116490.0,116480.0,0.991558]
[1752185292587,1.17540152,116490.0,116480.0,0.991558]
[1752185293094,0.81460152,116490.0,116480.0,0.991558]
[1752185293393,0.50258379,116490.0,116480.0,1.352358]
[1752185293985,0.81460152,116490.0,116480.0,1.35229752]
[1752185294494,0.50258379,116490.0,116480.0,1.35229752]
[1752185295184,0.81460152,116490.0,116480.0,1.35229752]
[1752185295696,0.50258379,116490.0,116480.0,1.35229752]
[1752185296089,0.44098379,116490.0,116480.0,1.35229752]
[1752185296591,0.50268379,116490.0,116480.0,1.35229752]
[1752185296787,0.50268379,116490.0,116480.0,0.99149752]
[1752185296985,0.50268379,116490.0,116480.0,1.35229752]
[1752185297189,0.50268379,116490.0,116480.0,0.99149752]
[1752185297489,0.50268379,116490.0,116480.0,1.35229752]
[1752185297990,0.37318379,116490.0,116480.0,1.35229752]
[1752185298397,0.50088379,116490.0,116480.0,1.35229752]
[1752185299297,0.34267379,116490.0,116480.0,0.73475382]
[1752185299497,0.34195379,116490.0,116480.0,1.34841752]
[1752185299696,0.34195379,116490.0,116480.0,1.47611752]
[1752185299892,0.37256379,116490.0,116480.0,1.64781392]
[1752185300392,0.29469379,116490.0,116480.0,1.95983165]
[1752185301292,0.0021,116490.0,116480.0,1.95983165]
[1752185302397,0.0021,116490.0,116480.0,2.45983165]
[1752185303399,0.0021,116490.0,116480.0,2.14781392]
[1752185303792,0.0021,116490.0,116480.0,1.19075752]
[1752185304098,0.0021,116490.0,116480.0,2.45775155]
[1752185304793,0.0021,116490.0,116480.0,2.28605525]
[1752185304996,0.0021,116490.0,116480.0,2.45775155]
[1752185305902,0.0021,116490.0,116480.0,2.28605525]
[1752185306104,0.0021,116490.0,116480.0,2.45775155]
[1752185306503,0.0021,116490.0,116480.0,1.50277525]
[1752185306696,0.04806,116490.0,116480.0,2.45635155]
[1752185306897,0.07809,116490.0,116480.0,2.45635155]
[1752185307098,0.14379,116490.0,116480.0,2.45635155]
[1752185307403,0.11376,116490.0,116480.0,2.45635155]
[1752185307697,0.0021,116490.0,116480.0,2.45635155]
[1752185308097,0.0021,116490.0,116480.0,2.14433382]
[1752185308291,0.0021,116490.0,116480.0,2.45635155]
[1752185308496,0.11376,116490.0,116480.0,2.45635155]
[1752185308696,0.0021,116490.0,116480.0,2.45635155]
[1752185308890,0.0021,116490.0,116480.0,2.45527155]
[1752185309098,0.0021,116490.0,116480.0,1.67447155]
[1752185309298,0.0021,116490.0,116480.0,2.45507155]
[1752185309499,0.04806,116490.0,116480.0,2.45507155]
[1752185309904,0.0021,116490.0,116480.0,2.45507155]
[1752185310096,0.0021,116490.0,116480.0,2.28293525]
[1752185310404,0.0021,116490.0,116480.0,2.45463165]
[1752185310703,0.0021,116490.0,116480.0,2.14261392]
[1752185310904,0.04806,116490.0,116480.0,2.45463165]
[1752185311202,0.0021,116490.0,116480.0,2.45463165]
[1752185312201,0.11346,116490.0,116480.0,1.67447165]
[1752185312401,0.11346,116490.0,116480.0,1.67747165]
[1752185312703,0.11346,116490.0,116480.0,1.67747155]
[1752185313093,0.11346,116490.0,116480.0,2.45623155]
[1752185313699,0.21009,116490.0,116480.0,2.39293155]
[1752185314004,0.21009,116490.0,116480.0,2.45302155]
[1752185314401,0.21009,116490.0,116480.0,1.67426155]
[1752185314599,0.21009,116490.0,116480.0,2.45230155]
[1752185315405,0.21009,116490.0,116480.0,1.67426155]
[1752185315600,0.21009,116490.0,116480.0,2.45186155]
[1752185315800,0.21009,116490.0,116480.0,1.67426155]
[1752185315996,0.64284152,116490.0,116480.0,1.12614752]
[1752185316306,0.81470152,116490.0,116480.0,1.07614752]
[1752185316505,0.81546152,116490.0,116480.0,0.57614752]
[1752185316701,0.81546152,116490.0,116480.0,0.06609]
[1752185316903,1.17626152,116490.0,116480.0,0.84305]
[1752185317205,1.17626152,116490.0,116480.0,0.06609]
[1752185317394,1.17626152,116490.0,116480.0,0.84285]
[1752185317598,1.17626152,116490.0,116480.0,0.83981]
[1752185317799,0.0372,116490.0,116480.0,1.5766375]
[1752185318097,0.03644,116490.0,116480.0,1.56311617]
[1752185318405,0.0021,116490.0,116480.0,1.8728139]
[1752185318604,0.0021,116490.0,116480.0,2.3728139]
[1752185318904,0.0021,116490.0,116480.0,2.5721319]
[1752185319904,0.03644,116490.0,116480.0,2.5721319]
[1752185320106,0.0021,116490.0,116480.0,2.5731319]
[1752185320602,0.0031,116490.0,116480.0,2.5721319]
[1752185320808,0.0031,116490.0,116480.0,1.7957319]
[1752185321105,0.0031,116490.0,116480.0,2.3991955]
[1752185321310,0.0031,116490.0,116480.0,2.5708918]
[1752185321496,0.04906,116490.0,116480.0,1.6240355]
[1752185321703,0.04906,116490.0,116480.0,2.3989555]
[1752185322105,0.04906,116490.0,116480.0,2.4009555]
[1752185322106,0.04806,116490.0,116480.0,2.4009555]
[1752185322304,0.04806,116490.0,116480.0,1.6260355]
[1752185322506,0.21992,116490.0,116480.0,2.4007955]
[1752185322806,0.28632,116490.0,116480.0,1.6260355]
[1752185322996,0.35102,116490.0,116480.0,2.4003155]
[1752185323198,0.35102,116490.0,116480.0,1.46149777]
[1752185323404,0.78377152,116490.0,116480.0,0.64126777]
[1752185323604,0.78377152,116490.0,116480.0,1.41522777]
[1752185324008,0.78453152,116490.0,116480.0,1.41522777]
[1752185324209,0.78453152,116490.0,116480.0,0.64126777]
[1752185324407,0.78453152,116490.0,116480.0,1.41522777]
[1752185324702,0.47251379,116490.0,116480.0,1.05442777]
[1752185324908,0.47251379,116490.0,116480.0,1.41522777]
[1752185325203,0.47251379,116490.0,116480.0,1.41422777]
[1752185325409,0.47351379,116490.0,116480.0,1.41322777]
[1752185325611,0.47351379,116490.0,116480.0,1.45917777]
[1752185326100,0.47251379,116490.0,116480.0,1.41322777]
[1752185326911,0.43784379,116490.0,116480.0,1.49144777]
[1752185327111,0.50184379,116490.0,116480.0,1.49144777]
[1752185328107,0.50184379,116490.0,116480.0,0.63926777]
[1752185328410,0.50184379,116490.0,116470.0,0.50608]
[1752185328411,0.04596,116480.0,116470.0,0.14528]
[1752185328603,0.59273773,116480.0,116470.0,0.14528]
[1752185328804,0.76516973,116480.0,116470.0,0.917]
[1752185329310,0.76516973,116480.0,116470.0,0.91696]
[1752185329507,0.76516973,116480.0,116470.0,0.91796]
[1752185329705,1.33000973,116480.0,116450.0,0.37900762]
[1752185329904,0.52983773,116460.0,116450.0,1.15020762]
[1752185330308,0.53055773,116460.0,116450.0,1.15020762]
[1752185330506,0.53055773,116460.0,116450.0,0.01820762]
[1752185330710,0.53055773,116460.0,116450.0,0.78904762]
[1752185330906,0.53055773,116460.0,116450.0,1.14984762]
[1752185331113,0.21854,116460.0,116450.0,1.14984762]
[1752185331411,0.21782,116460.0,116450.0,0.98836562]
[1752185331609,0.21782,116460.0,116450.0,1.05576562]
[1752185332000,0.21782,116460.0,116450.0,1.398358]
[1752185332206,0.21782,116460.0,116450.0,1.037558]
[1752185332400,0.21782,116460.0,116450.0,1.398358]
[1752185332608,0.21782,116460.0,116450.0,1.399358]
[1752185333115,0.28152,116460.0,116450.0,1.038558]
[1752185333409,0.28152,116460.0,116450.0,1.399358]
[1752185334200,0.31481,116460.0,116450.0,1.399358]
[1752185336407,0.08184,116470.0,116460.0,0.03025]
[1752185336615,0.08184,116470.0,116460.0,0.75180773]
[1752185336812,0.2537,116470.0,116460.0,0.81800773]
[1752185337112,0.2537,116470.0,116460.0,0.88310773]
[1752185337710,0.2537,116470.0,116460.0,0.57109]
[1752185338609,0.2537,116470.0,116460.0,0.57309]
[1752185338911,0.89322773,116470.0,116460.0,0.006]
[1752185339109,0.04855,116460.0,116450.0,0.199218]
[1752185339305,0.04855,116450.0,116430.0,0.0687]
[1752185339501,0.37681773,116440.0,116430.0,0.0687]
[1752185339704,0.37753773,116440.0,116420.0,1.19324]
[1752185339903,0.42271773,116430.0,116410.0,0.37904656]
[1752185340100,0.046,116410.0,116400.0,0.41974616]
[1752185340307,0.046,116410.0,116400.0,0.05894616]
[1752185340508,0.42721773,116410.0,116400.0,0.05894616]
[1752185340713,0.42793773,116410.0,116400.0,0.82562616]
[1752185340908,0.42793773,116410.0,116400.0,0.05894616]
[1752185341108,0.42793773,116410.0,116400.0,0.12414616]
[1752185341310,0.42793773,116410.0,116400.0,0.11565814]
[1752185341813,0.42893773,116410.0,116400.0,0.11565814]
[1752185342307,0.42893773,116410.0,116400.0,0.31497614]
[1752185342513,0.78973773,116410.0,116400.0,0.31497614]
[1752185342710,0.79073773,116410.0,116400.0,0.31497614]
[1752185342899,0.42893773,116410.0,116400.0,0.31497614]
[1752185343105,0.43393773,116410.0,116400.0,0.31597614]
[1752185343315,0.60575373,116410.0,116400.0,0.26723614]
[1752185343508,0.96655373,116410.0,116400.0,0.26723614]
[1752185343709,0.96655373,116410.0,116400.0,0.20203614]
[1752185343910,0.654536,116410.0,116400.0,0.20203614]
[1752185344114,0.96655373,116410.0,116400.0,0.20203614]
[1752185344414,0.96655373,116410.0,116400.0,0.26893614]
[1752185344817,0.96055373,116410.0,116400.0,0.26793614]
[1752185345017,0.96155373,116410.0,116400.0,0.26793614]
[1752185345417,0.96255373,116410.0,116400.0,0.26793614]
[1752185346119,0.96355373,116410.0,116400.0,0.26793614]
[1752185346319,1.72895373,116410.0,116400.0,0.26793614]
[1752185347813,0.79173773,116410.0,116400.0,0.26793614]
[1752185348009,1.27557146,116410.0,116400.0,0.15503614]
[1752185348209,1.57957146,116410.0,116380.0,0.19342114]
[1752185348416,0.67281773,116390.0,116380.0,0.19342114]
[1752185348618,0.67353773,116390.0,116380.0,0.14468114]
[1752185348819,0.73973773,116390.0,116380.0,0.07595114]
[1752185349617,0.73973773,116390.0,116380.0,0.01025114]
[1752185349819,1.10053773,116390.0,116380.0,0.01025114]
[1752185350421,1.27237773,116390.0,116380.0,0.01025114]
[1752185350624,1.27237773,116390.0,116380.0,0.01225114]
[1752185350812,1.52237773,116390.0,116360.0,0.01186715]
[1752185351013,0.67281773,116370.0,116360.0,0.06902454]
[1752185351316,0.67353773,116370.0,116360.0,0.01186715]
[1752185351523,1.01260973,116370.0,116360.0,0.01186715]
[1752185351916,1.77500973,116370.0,116360.0,0.07426715]
[1752185352312,1.77700973,116370.0,116360.0,0.07426715]
[1752185352520,1.77700973,116370.0,116360.0,0.27358515]
[1752185352721,1.77800973,116370.0,116360.0,0.31654515]
[1752185353220,0.46452,116370.0,116360.0,0.36528515]
[1752185353418,0.3608,116380.0,116370.0,0.04874]
[1752185353625,0.67281773,116380.0,116370.0,0.11764]
[1752185353921,0.3608,116380.0,116370.0,0.11764]
[1752185354320,0.0001,116390.0,116370.0,0.47844]
[1752185354521,0.0001,116390.0,116380.0,0.47144]
[1752185355328,0.31511773,116390.0,116380.0,0.670758]
[1752185355518,0.31511773,116390.0,116380.0,0.671758]
[1752185355519,0.32211773,116390.0,116380.0,0.671758]
[1752185356618,0.32211773,116390.0,116380.0,0.740758]
[1752185357124,0.31911773,116390.0,116380.0,0.740758]
[1752185357322,0.32111773,116390.0,116380.0,0.740758]
[1752185357926,0.32111773,116390.0,116380.0,0.379958]
[1752185358127,0.32111773,116390.0,116380.0,0.741198]
[1752185359221,0.32111773,116390.0,116380.0,0.249498]
[1752185359524,0.0752,116390.0,116380.0,0.249058]
[1752185359826,0.38721773,116390.0,116380.0,0.315258]
[1752185360024,0.38769773,116390.0,116380.0,0.315258]